Cogmind - Beta 12 @@@ ROGUE MODE // 2023.04.05 @ 12:56:03 Player: btmk16 Result: Destroyed by Y-45 Defender with Heavy Assault Rifle Performance ------------- Evolutions (2) 1000 Regions Visited (7) 1400 Robots Destroyed (100) 500 Value Destroyed (2206) 2206 Prototype IDs (26) 520 Alien Tech Used (0) 0 Bonus (300) 300 TOTAL SCORE: 5926 Bonus ------- Aligned with FarCom 300 Cogmind --------- Core Integrity 0/550 Matter 356/450 Energy 23/275 System Corruption 0% Temperature Cool (18) Movement Rolling (125) Ox3 Location -8/Materials Parts ------- > --- POWER (1) -------- Deuterium Engine > --- PROPULSION (2) --- Wheel Wheel > --- UTILITY (6) ------ Cooling System High-capacity Storage Unit Large Matter Pod Visual Processing Unit Signal Interpreter Improved Light Armor Plating > --- WEAPON (2) ------- Great Maul > --- INVENTORY (20) --- Wheel Wheel Wheel Wheel Improved Light Armor Plating Improved Light Armor Plating Long-range Tractor Beam Improved Medium Laser Heavy Laser EM Pulse Cannon Latent Energy Streamer Mini Grenade Launcher Peak State ------------ > --- POWER ------------ Deuterium Engine > --- PROPULSION ------- Improved Treads Improved Treads > --- UTILITY ---------- Heat Sink High-capacity Storage Unit Large Matter Pod Visual Processing Unit Signal Interpreter Improved Light Armor Plating > --- WEAPON ----------- Ion Cannon Assault Cannon > --- INVENTORY -------- Improved Treads Improved Treads Wheel Wheel Wheel Wheel Wheel Wheel Improved Light Armor Plating Long-range Tractor Beam EM Pulse Cannon Latent Energy Streamer Heavy Assault Rifle High-powered Shotgun Light Cannon EMP Blaster Mini Grenade Launcher Great Maul [Rating: 26] Favorites ----------- Power Ion Engine Engine Ion Engine Power Core Nuclear Core Propulsion Light Treads Treads Light Treads Wheel Wheel Utility Heat Sink Device Heat Sink Storage High-capacity Storage Unit Processor Visual Processing Unit Protection Improved Light Armor Plating Weapon Assault Rifle Energy Gun Improved Medium Laser Energy Cannon Ion Cannon Ballistic Gun Assault Rifle Ballistic Cannon Assault Cannon Launcher Mini Grenade Launcher Impact Weapon Great Maul Build | -11 -10 -10 -9 -9 -9 -8 -8 ------- Run | Jun Mat Min Mat Min Exi Min Mat Slots Evolved 4 | . . . 2 . . . 2 Power . | . . . . . . . . Propulsion . | . . . . . . . . Utility 4 | . . . 2 . . . 2 Weapon . | . . . . . . . . Parts Attached 88 | 7 11 1 11 6 . 12 40 Power 9 | 1 1 . 2 . . . 5 Engine 6 | 1 1 . 2 . . . 2 Core 3 | . . . . . . . 3 Reactor . | . . . . . . . . Propulsion 28 | 2 2 . 3 3 . 3 15 Treads 17 | 2 2 . 3 1 . 1 8 Leg . | . . . . . . . . Wheel 11 | . . . . 2 . 2 7 Hover . | . . . . . . . . Flight . | . . . . . . . . Utility 17 | 1 3 . 3 1 . 2 7 Device 7 | . 1 . 2 1 . 1 2 Storage 3 | 1 1 . . . . . 1 Processor 2 | . . . . . . 1 1 Hackware . | . . . . . . . . Protection 5 | . 1 . 1 . . . 3 Artifact . | . . . . . . . . Weapon 34 | 3 5 1 3 2 . 7 13 Energy Gun 5 | 1 1 . . . . . 3 Energy Cannon 2 | . . . . . . . 2 Ballistic Gun 14 | 2 3 1 2 . . 4 2 Ballistic Cannon 3 | . . . . . . . 3 Launcher 9 | . 1 . 1 2 . 3 2 Special Weapon . | . . . . . . . . Impact Weapon 1 | . . . . . . . 1 Slashing Weapon . | . . . . . . . . Piercing Weapon . | . . . . . . . . Special Melee Weapon . | . . . . . . . . Unidentified Prototypes 1 | . . . . . . . 1 Parts Lost 34 | . 3 2 5 1 . 5 18 Power 3 | . . . 1 . . . 2 Propulsion 12 | . . . 3 1 . 2 6 Utility 9 | . 1 1 1 . . 2 4 Weapon 10 | . 2 1 . . . 1 6 Highest Loss Streak 15 | . 1 1 2 3 . 3 15 To Critical Strikes 1 | . . . . . . 1 . Average Slot Usage (%) 92 | . 98 81 86 97 100 89 92 Engine 8 | . 14 14 10 11 11 11 3 Core 1 | . . . . . . . 3 Treads 11 | . 28 28 21 3 . 4 3 Wheel 9 | . . . . 17 22 15 13 Device 13 | . 6 . 14 32 33 17 10 Storage 13 | . 14 14 11 11 11 11 16 Processor 8 | . . . . . . 10 16 Protection 4 | . 6 . 9 . . . 5 Energy Gun 1 | . 3 . . . . . 2 Energy Cannon 1 | . . . . . . . 4 Ballistic Gun 11 | . 24 15 19 . . 16 1 Ballistic Cannon 3 | . . . . . . . 8 Launcher 3 | . . 9 . 21 22 3 1 Naked Turns . | . . . . . . . . Heaviest Build 67 | 14 51 51 54 52 52 53 67 Greatest Support 46 | 40 40 40 40 32 32 32 46 Greatest Overweight (x) 6 | 1 1 1 2 3 1 5 6 Average Overweight (x) 1 | . . 1 1 1 1 1 3 Largest Inventory Capacity 20 | 8 20 20 20 20 20 20 20 Average Capacity 17 | 7 8 20 20 20 20 20 20 Most Carried 20 | 6 8 8 13 13 13 18 20 Average Carried 12 | 5 7 8 10 10 10 13 17 Final Capacity 20 | 8 20 20 20 20 20 20 20 Final Carried 18 | 6 8 8 13 10 13 18 12 Class Distribution -------------------- 57% | Scavenger-Mutant 42% | Mutant Dominant Class ---------------- Mutant | -10/Materials Mutant | -10/Mines Scavenger-Mutant | -9/Materials Scavenger-Mutant | -9/Mines Scavenger-Mutant | -9/Exiles Scavenger-Mutant | -8/Mines Scavenger-Mutant | -8/Materials Resources | -11 -10 -10 -9 -9 -9 -8 -8 ----------- Run | Jun Mat Min Mat Min Exi Min Mat Matter Collected 2634 | 322 469 54 438 175 . 357 819 Remotely 444 | . . . 265 175 . 4 . Salvage Created 2987 | 84 722 67 510 216 . 334 1054 Parts 194 | 7 54 5 21 8 . 36 63 Haulers Intercepted 2 | . 1 . . . . . 1 Recyclers Shooed 2 | 1 . . . . . 1 . Parts Field Recycled . | . . . . . . . . Retrieved Matter . | . . . . . . . . Parts Self-Destructed . | . . . . . . . . Prevented . | . . . . . . . . Kills | -11 -10 -10 -9 -9 -9 -8 -8 ------- Run | Jun Mat Min Mat Min Exi Min Mat Combat Hostiles Destroyed 74 | . 18 4 5 11 . 12 24 Guns 30 | . 18 1 5 . . . 6 Cannons 12 | . . . . . . . 12 AOE 30 | . . 3 . 11 . 11 5 Classes Destroyed 13 | 2 6 . 2 1 . 1 1 Worker 7 | 1 1 . 1 1 . 1 2 Builder 5 | . 1 . . . . 3 1 Tunneler 6 | 3 . . . . . 3 . Hauler 2 | . 1 . . . . . 1 Recycler 8 | . . . 3 2 . 1 2 Operator 3 | . 2 . 1 . . . . Watcher 1 | . 1 . . . . . . Swarmer 28 | . 6 3 1 3 . 11 4 Grunt 32 | . 12 1 2 2 . . 15 Brawler 1 | . . . . . . . 1 Sentry 6 | . . . 2 . . . 4 Hunter 1 | . . . . . . 1 . Assembled 6 | . . . . 6 . . . Best Kill Streak 9 | 2 5 3 4 9 . 4 6 Combat Bots Only 6 | . 3 3 2 6 . 4 5 Max Kills in Single Turn 4 | 1 2 1 1 4 . 3 2 Gunslinging . | . . . . . . . . Exploded 4 | . . 1 . 4 . 3 1 Melee . | . . . . . . . . Uniques/NPCs Destroyed . | . . . . . . . . Combat | -11 -10 -10 -9 -9 -9 -8 -8 -------- Run | Jun Mat Min Mat Min Exi Min Mat Damage Taken 5149 | . 886 185 765 186 . 243 2884 Core 1019 | . 185 40 121 31 . 84 558 Absorbed by Shields . | . . . . . . . . Redirected to Shielding 51 | . 45 6 . . . . . Core Remaining (%) 50 | 100 . 10 . . . 41 . Volleys Fired 288 | 9 76 10 37 7 . 34 115 Largest 2 | 2 2 2 2 2 . 2 2 Hottest 125 | 40 60 40 50 60 . 60 125 Shots Fired 504 | 18 151 12 64 12 . 60 187 Gun 334 | 18 151 8 63 . . 44 50 Cannon 128 | . . . . . . . 128 Launcher 42 | . . 4 1 12 . 16 9 Special . | . . . . . . . . Kinetic 386 | 18 134 8 63 . . 44 119 Thermal 76 | . 17 . . . . . 59 Explosive 31 | . . 4 1 12 . 11 3 Electromagnetic 11 | . . . . . . 5 6 Robot Hit Streak 13 | 4 9 4 12 6 . 4 13 Robot Miss Streak 5 | 2 5 3 4 3 . 3 3 Penetration Max . | . . . . . . . . Secondary Targets 1 | . 1 . . . . . . Max Gunslinging Chain 1 | . 1 . . . . . . Shots Hit Robots 288 | 9 89 8 44 8 . 21 109 Core Hits 170 | 4 40 7 16 25 . 24 54 Critical Kills . | . . . . . . . . Critical Parts Destroyed 1 | 1 . . . . . . . Critical Strikes 5 | 1 . . . . . . 4 Burn 2 | . . . . . . . 2 Destroy 1 | 1 . . . . . . . Blast 2 | . . . . . . . 2 Melee Attacks 3 | . . . . . . . 3 Impact 3 | . . . . . . . 3 Slashing . | . . . . . . . . Piercing . | . . . . . . . . Sneak Attacks 1 | . . . . . . . 1 Combat Hostiles . | . . . . . . . . Follow-up Attacks . | . . . . . . . . Damage Inflicted 6882 | 137 1118 249 533 1062 . 1019 2764 Guns 2947 | 137 1118 89 533 . . 278 792 Cannons 1473 | . . . . . . . 1473 Explosions 2392 | . . 160 . 1062 . 741 429 Melee 70 | . . . . . . . 70 Ramming . | . . . . . . . . Kinetic 3488 | 137 987 89 533 . . 278 1464 Thermal 932 | . 131 . . . . . 801 Explosive 2116 | . . 160 . 1062 . 640 254 Electromagnetic 276 | . . . . . . 101 175 Impact 70 | . . . . . . . 70 Slashing . | . . . . . . . . Piercing . | . . . . . . . . Highest Corruption 3 | . 3 3 . . . . . Average Corruption 2 | . 2 3 . . . . . Corruption Purged . | . . . . . . . . Corruption Blocked . | . . . . . . . . Effects 7 | . 7 . . . . . . Message Errors 2 | . 2 . . . . . . Matter Fused 1 | . 1 . . . . . . Heat Flow Errors 2 | . 2 . . . . . . Parts Rejected 2 | . 2 . . . . . . Overload Shots . | . . . . . . . . Overflow Damage 172 | . . . . 80 . 44 48 Projectiles 7 | . . . . . . . 7 Explosions 135 | . . . . 80 . 44 11 Melee 30 | . . . . . . . 30 Knockbacks 12 | . . . . . . . 12 Impact 1 | . . . . . . . 1 Kinetic 11 | . . . . . . . 11 Secondary . | . . . . . . . . Self-Inflicted Damage 147 | . . 22 39 86 . . . Shots 6 | . . 2 1 3 . . . Rammed 1 | 1 . . . . . . . Targets Rammed 1 | 1 . . . . . . . Kicked . | . . . . . . . . Crushed . | . . . . . . . . Highest Temperature 237 | . 113 2 2 . . . 237 Average Temperature 60 | . 27 2 1 . . . 71 Received Heat Transfer 2319 | . 402 66 225 51 . . 1575 Siege Activations . | . . . . . . . . Robots Corrupted 2 | . . . . . . 1 1 Combat Hostiles 1 | . . . . . . 1 . Parts Fried 2 | . . . . . . 1 1 Impact Corruptions 3 | . . . . . . . 3 Robots Melted 1 | . . . . . . . 1 Combat Hostiles 1 | . . . . . . . 1 Parts Melted 1 | . 1 . . . . . . Heat Transferred 2039 | . 300 . . . . . 1739 Parts Sabotaged . | . . . . . . . . Parts Stolen . | . . . . . . . . Parts Stripped . | . . . . . . . . Power Chain Reactions 1 | . . . . . . . 1 Missiles Intercepted . | . . . . . . . . Alert | -11 -10 -10 -9 -9 -9 -8 -8 ------- Run | Jun Mat Min Mat Min Exi Min Mat Peak Influence 350 | 20 266 248 225 223 . 274 350 Initial 103 | . 13 103 96 31 . . . Average 142 | 5 131 208 108 184 . 129 170 Maximum Alert Level 1 | . 1 1 1 1 . 1 1 Low Security (%) 67 | 100 86 10 78 55 . 68 55 Level 1 32 | . 13 89 21 44 . 31 44 Level 2 . | . . . . . . . . Level 3 . | . . . . . . . . Level 4 . | . . . . . . . . Level 5 . | . . . . . . . . High Security . | . . . . . . . . Max Security . | . . . . . . . . Squads Dispatched 14 | . 6 . 2 . . . 6 Investigation 5 | . 3 . 2 . . . . Extermination . | . . . . . . . . Reinforcement 6 | . 3 . . . . . 3 Assault . | . . . . . . . . Garrison 3 | . . . . . . . 3 Intercept . | . . . . . . . . Searches Triggered . | . . . . . . . . Construction Impeded 2 | . . . . . . . 2 Haulers Reinforced . | . . . . . . . . Active Scanning Responses . | . . . . . . . . Cargo Convoy Interrupts . | . . . . . . . . Stealth | -11 -10 -10 -9 -9 -9 -8 -8 --------- Run | Jun Mat Min Mat Min Exi Min Mat Distress Signals 10 | . 2 . 1 . . . 7 Communications Jammed . | . . . . . . . . Distress Signals . | . . . . . . . . Times Spotted 118 | . 30 5 17 13 . 9 44 Peak Tracking Total 10 | . 5 3 9 5 . 4 10 Tactical Retreats 8 | . 2 1 . . . . 5 Traps | -11 -10 -10 -9 -9 -9 -8 -8 ------- Run | Jun Mat Min Mat Min Exi Min Mat Traps Triggered 5 | . 4 . 1 . . . . Indirectly . | . . . . . . . . Trap Hack Attempts . | . . . . . . . . Triggered . | . . . . . . . . Disarmed . | . . . . . . . . Reprogrammed . | . . . . . . . . Reused . | . . . . . . . . Traps Extracted . | . . . . . . . . Installed . | . . . . . . . . Triggered . | . . . . . . . . Machines | -11 -10 -10 -9 -9 -9 -8 -8 ---------- Run | Jun Mat Min Mat Min Exi Min Mat Machines Disabled 5 | . . 3 . . . . 2 Max in Single Turn 2 | . . 2 . . . . 1 Garrison Access 1 | . . . . . . . 1 Machines Repaired . | . . . . . . . . Machines Sabotaged . | . . . . . . . . Overloaded Fab Kills . | . . . . . . . . Hacking | -11 -10 -10 -9 -9 -9 -8 -8 --------- Run | Jun Mat Min Mat Min Exi Min Mat Machines Accessed 9 | . 1 . 4 . 2 . 2 Terminals 6 | . 1 . 4 . . . 1 Fabricators . | . . . . . . . . Repair Stations . | . . . . . . . . Recycling Units . | . . . . . . . . Scanalyzers . | . . . . . . . . Garrison Access 1 | . . . . . . . 1 Total Hacks 17 | . 2 . 8 . 2 . 5 Successful 7 | . . . 2 . 2 . 3 Failed 10 | . 2 . 6 . . . 2 Catastrophic 3 | . 1 . 2 . . . . Database Lockouts . | . . . . . . . . Manual 10 | . . . 6 . 1 . 3 Terminals 14 | . 2 . 8 . . . 4 Fabricators . | . . . . . . . . Repair Stations . | . . . . . . . . Recycling Units . | . . . . . . . . Scanalyzers . | . . . . . . . . Garrison Access 1 | . . . . . . . 1 Terminal Hacks 5 | . . . 2 . 2 . 1 Record 1 | . . . . . 1 . . Robot Analysis 1 | . . . 1 . . . . Prototype ID Bank 1 | . . . . . . . 1 Branch Access Points 1 | . . . 1 . . . . EX-Prototype ID Bank 1 | . . . . . 1 . . Fabricator Hacks . | . . . . . . . . Repair Station Hacks . | . . . . . . . . Recycling Unit Hacks . | . . . . . . . . Scanalyzer . | . . . . . . . . Garrison Access Hacks 1 | . . . . . . . 1 Seal Access 1 | . . . . . . . 1 Unauthorized Hacks 1 | . . . . . . . 1 Terminals 1 | . . . . . . . 1 Botnet 1 | . . . . . . . 1 Fabricators . | . . . . . . . . Repair Stations . | . . . . . . . . Recycling Units . | . . . . . . . . Scanalyzers . | . . . . . . . . Garrison Access . | . . . . . . . . Data Cores Recovered . | . . . . . . . . Used . | . . . . . . . . Hacking Detections 6 | . 1 . 4 . . . 1 Full Trace Events 2 | . 1 . 1 . . . . Feedback Events . | . . . . . . . . Feedback Blocked . | . . . . . . . . Robot Schematics Acquired . | . . . . . . . . Robots Built . | . . . . . . . . Authchips . | . . . . . . . . Time . | . . . . . . . . Total Robot Build Rating . | . . . . . . . . Part Schematics Acquired . | . . . . . . . . Parts Built . | . . . . . . . . Authchips . | . . . . . . . . Time . | . . . . . . . . Total Part Build Rating . | . . . . . . . . Parts Repaired . | . . . . . . . . Time . | . . . . . . . . Parts Recycled . | . . . . . . . . Recycled Matter . | . . . . . . . . Retrieved Matter . | . . . . . . . . Retrieved Components . | . . . . . . . . Parts Scanalyzed . | . . . . . . . . Part Schematics Acquired . | . . . . . . . . Parts Damaged . | . . . . . . . . Bothacking | -11 -10 -10 -9 -9 -9 -8 -8 ------------ Run | Jun Mat Min Mat Min Exi Min Mat Used RIF Installer . | . . . . . . . . Robots Hacked . | . . . . . . . . Non-combat . | . . . . . . . . Combat . | . . . . . . . . Robot Hacks Applied . | . . . . . . . . Relay Couplers Released 2 | . . . . . . . 2 Machine Destruction 2 | . . . . . . . 2 Fabnet Peak Effective % . | . . . . . . . . Robots Rewired . | . . . . . . . . Allies Hacked . | . . . . . . . . Hacks Repelled . | . . . . . . . . Allies | -11 -10 -10 -9 -9 -9 -8 -8 -------- Run | Jun Mat Min Mat Min Exi Min Mat Total Allies 2 | . . . . 2 . . . Largest Group 2 | . . . . 2 . . . Highest-Rated Group 50 | . . . . 50 . . . Highest-Rated Ally 31 | . . . . 31 . . . Total Orders . | . . . . . . . . Ally Attacks 5 | . . . . 5 . . . Total Damage 66 | . . . . 66 . . . Kills . | . . . . . . . . Allies Corrupted . | . . . . . . . . Allies Melted . | . . . . . . . . Intel | -11 -10 -10 -9 -9 -9 -8 -8 ------- Run | Jun Mat Min Mat Min Exi Min Mat Robot Analysis Total 1 | . . . 1 . . . . Derelict Logs Recovered 1 | . . . . 1 . . . Drone Launches . | . . . . . . . . Drone Recoveries . | . . . . . . . . Exploration | -11 -10 -10 -9 -9 -9 -8 -8 ------------- Run | Jun Mat Min Mat Min Exi Min Mat Turns Passed 5654 | 136 1069 87 794 217 278 1032 2041 Spaces Moved 2691 | 62 482 27 269 155 241 674 781 Core 7 | 7 . . . . . . . Treads 927 | 55 482 27 269 . . 71 23 Legs . | . . . . . . . . Wheels 1757 | . . . . 155 241 603 758 Hover . | . . . . . . . . Flight . | . . . . . . . . Fastest Speed 50 | 50 160 240 240 115 115 110 110 Average Speed 148 | 150 161 240 240 123 115 135 132 Slowest Speed 320 | 160 240 240 320 145 115 320 240 Overloaded Moves . | . . . . . . . . Propulsion Burnouts . | . . . . . . . . Robots Hopped . | . . . . . . . . Cave-ins Triggered . | . . . . . . . . Exploration Rate (%) 45 | 7 82 15 30 35 61 91 46 Regions Visited 7 Branch Regions 4 Pre-discovered Areas 2 | . . . . 1 1 . . Known Exits Taken 1 | . . . 1 . . . . Unknown Exits Taken 6 | 1 1 1 . 1 1 1 . Scrap Searched 2 | . . . . 1 . 1 . Spaces Dug 15 | . . . . . . . 15 Terrain Destroyed 203 | . . 5 6 78 . 62 52 Melee 2 | . . . . . . . 2 Projectile 32 | . . . . . . . 32 AOE 169 | . . 5 6 78 . 62 18 Terrain Rammed . | . . . . . . . . Walls Destroyed . | . . . . . . . . Machines Disabled . | . . . . . . . . Actions | -11 -10 -10 -9 -9 -9 -8 -8 --------- Run | Jun Mat Min Mat Min Exi Min Mat Total 3832 | 84 624 38 357 167 242 730 1590 Wait 706 | . 40 1 35 . . 3 627 Move 2684 | 61 481 26 268 154 240 673 781 Hop . | . . . . . . . . Pick Up 38 | 5 8 . 5 . 2 7 11 Fast Attach 30 | 7 5 . 4 . . 3 11 Attach 24 | . 2 . 4 3 . 3 12 Detach 5 | 1 . . 1 . . 1 2 Swap 34 | . 4 1 3 3 . 6 17 Drop 19 | . 8 . . . . . 11 Fire 288 | 9 76 10 37 7 . 34 115 Melee 3 | . . . . . . . 3 Ram . | . . . . . . . . Kick . | . . . . . . . . Crush 1 | 1 . . . . . . . Escape Stasis . | . . . . . . . . Rewire . | . . . . . . . . Trap . | . . . . . . . . Miscellaneous . | . . . . . . . . Route ------- -11/Junkyard -10/Materials (discovered 4 exits: *Mat x2 / [*Min x2]) -10/Mines -9/Materials (discovered 2 exits: *Min / Sto) -9/Mines -9/Exiles -8/Mines (discovered 2 exits: *Mat x2) -8/Materials History --------- Turn | Location | Event 8 | -11/Junkyard | Discovered new exit (range 15) 137 | -11/Junkyard | Entered Materials 315 | -10/Materials | Build established: Mutant 479 | -10/Materials | Discovered new exit (range 16) 752 | -10/Materials | Discovered new exit (range 6) 836 | -10/Materials | Discovered new exit (range 15) 997 | -10/Materials | Core integrity fell below 50% 1165 | -10/Materials | Discovered new exit (range 11) 1206 | -10/Materials | Entered Mines 1221 | -10/Mines | Met a Derelict bent on vengeance 1260 | -10/Mines | Discovered new exit (range 6) 1263 | -10/Mines | Core integrity fell below 20% 1293 | -10/Mines | Entered Materials 1293 | -9/Materials | Evolved 2 slots: Utility x2 1764 | -9/Materials | Identified exit to Mines 1764 | -9/Materials | Identified exit to Storage 1777 | -9/Materials | Build established: Scavenger-Mutant 2087 | -9/Materials | Entered Mines 2125 | -9/Mines | Lost 3 parts (2n1u) 2146 | -9/Mines | Learned location of Zion (-7) 2158 | -9/Mines | Assembled infested the area 2299 | -9/Mines | Discovered new exit (range 5) 2304 | -9/Mines | Entered Exiles 2333 | -9/Exiles | Met 8R-AWN 2352 | -9/Exiles | Met EX-HEX 2384 | -9/Exiles | Met EX-BIN 2400 | -9/Exiles | Aligned with FarCom system 2401 | -9/Exiles | Given EX-Vault access code 2428 | -9/Exiles | Opened EX-Vault 2436 | -9/Exiles | Found Latent Energy Streamer 2460 | -9/Exiles | Warned to stay clear of 0b10 Research branches 2496 | -9/Exiles | Met EX-DEC 2572 | -9/Exiles | Discovered new exit (range 10) 2582 | -9/Exiles | Left Exiles lab with Latent Energy Streamer 2582 | -9/Exiles | Entered Mines 2692 | -8/Mines | Lost 3 parts (1n1u1w) 2708 | -8/Mines | Discovered new exit (range 13) 2783 | -8/Mines | Core integrity fell below 50% 3515 | -8/Mines | Discovered new exit (range 14) 3614 | -8/Mines | Entered Materials 3614 | -8/Materials | Evolved 2 slots: Utility x2 3946 | -8/Materials | Garrison activated, responded to threat 4488 | -8/Materials | Build established: Mutant 4995 | -8/Materials | Build established: Scavenger-Mutant 5286 | -8/Materials | Core integrity fell below 50% 5318 | -8/Materials | Lost 15 parts (2p5n3u5w) 5357 | -8/Materials | Core integrity fell below 20% 5629 | -8/Materials | Build established: Mutant 5655 | -8/Materials | Destroyed by Y-45 Defender with Heavy Assault Rifle Last Messages --------------- 05552_ ALERT: Hostiles spotted, dispatching reinforcements to Terminal M002. 05552_ O-16 Technician locks terminal. 05555_ Acquired Imp. Light Armor Plating. 05571_ Acquired 5 matter. 05598_ Sneak attack on K-01 Serf. 05598_ Destroyed Lgt. Ion Engine. 05598_ Destroyed Wheel. 05598_ Destroyed Sml. Matter Pod. 05598_ K-01 Serf system corrupted by crushing effect. 05598_ K-01 Serf knocked back. 05599_ K-01 Serf system terminally corrupted. 05599_ Wheel fried. 05601_ Acquired 14 matter. 05645_ W-25 Informer sends out distress signal. 05648_ Acquired Deuterium Engine. 05653_ Door malfunctions. 05653_ Chain reaction triggered in Corrupted Deuterium Engine. 05653_ Electrolysis Chamber disabled. 05655_ EMP Blaster destroyed. Map ----- +----------------------------------------------------+ | ???????????????????????????? ????????????????????? | | ??????????????????????????? ????????????????????? | | ??????????????????????????? ????????????????????? | | ??????????????????????????? ????????????????????? | | ???????????###########????? ????????????????????? | | ? ???????# #?####/####?????????????????? | | ? ??????# #?# #?????????????????? | | ?# #?????# #?# """ #?????????????????? | | ?# #?????# #?# """ #?????????????????? | | ?# #?????# #?# """ #?????????????????? | | ?# #?????# #?# #?????????????????? | | ?# #?????? ??# """ #?????????????????? | | ?# #???????? ????#! """ #?????????????????? | | ?# #????????##+####### Y""" #?????????????????? | | ?# #????????# / #?????????????????? | | ?# ########## ###### #?????????????????? | | ?# #???## ! #?????????????????? | | ?# #####;#####/##?????????????????? | | ?# " T # ## #??????????????????? | | ?# """ # """ "## #??????????????????? | | ## """ # Y""" T## #??????????????????? | | og# "" "## #??????????????????? | | g ## #??????????????????? | | # = + #??????????????????? | | ##############+#### ###"#?????????????????? | | ??????????????????# * @ #??##?????????????????? | | ??????????????????# *! ] #?????????????????????? | | ??????????????????# ;;;####?????????????????????? | | ??????????????????######?????????????????????????? | | ?????????????????????????????????????????????????? | | ""??????????????????????????????????????????????? | | ""??????????????????????????????????????????????? | | ?????????????????????????????????????????????????? | | ?????????????????????????????????????????????????? | | ?????????????????????????????????????????????????? | | ?????????????????????????????????????????????????? | | ?????????????????????????????????????????????????? | | ?????????????????????????????????????????????????? | | ?????????????????????????????????????????????????? | | ?????????????????????????????????????????????????? | | ?????????????????????????????????????????????????? | | ?????????????????????????????????????????????????? | | ?????????????????????????????????????????????????? | | ?????????????????????????????????????????????????? | | ?????????????????????????????????????????????????? | | ?????????????????????????????????????????????????? | | ?????????????????????????????????????????????????? | | ?????????????????????????????????????????????????? | | ?????????????????????????????????????????????????? | | ?????????????????????????????????????????????????? | +----------------------------------------------------+ Best States ------------- Heat Dissipation 53 Energy Generation 14 Energy Capacity 275 Matter Stores 450 Matter Capacity 450 Sight Range 18 Terrain Scan Density 10 Armor Coverage 150 Propulsion Shielding 33 Evasion (%) 40 Recoil Reduction 2 Item Schematics ----------------- None Robot Schematics ------------------ None Fabricated ------------ Nothing Alien Tech Used ----------------- None Achievements -------------- None Challenges ------------ None Game ------ Seed TerrabombAnalysisLance Manual? 0 Play Time 00:34:55 Cumulative 618.9 hours Start 2023.04.05 @ 11:30:26 End 2023.04.05 @ 12:56:03 Sessions 1 Manual Loads 0 Difficulty Rogue Special Mode None Game No. 637 Rogue 636 Adventurer 0 Explorer 1 Win Type - Total 30 Types 21/0/6/3/0/0/0/0/0 Lore% 84 Gallery% 92 Achievement% 78 Wizard Run 0 Options --------- ASCII 0 Keyboard 1 Movement Vi Keybinds 0 Fullscreen 1 Font 18/SmallcapsGlow Map View 76x50 Tactical HUD 1 Map Filters NONE Filters NONE Steam 1 RUN: cce29b97-fb00-47a3-941b-7a3d73c58a76